fUST/lending_fUST_20250405
["ID","MTS","AMOUNT","RATE_DAILY","PERIOD"]
[357165241,1743843032656,-198.96397308,0.00017362,2]
[357165242,1743843032666,-203.1696324,0.00017802,2]
[357165243,1743843032676,-230.5954076,0.00017893,2]
[357165244,1743843032685,-351.2082871,0.00017897,2]
[357165245,1743843032694,-301.5781055,0.00018429,2]
[357165246,1743843032704,-500.56,0.00018889,2]
[357165247,1743843032714,-151.0,0.00018889,2]
[357165248,1743843032725,-200.0,0.00018889,2]
[357165249,1743843032734,-300.0,0.00018897,2]
[357165250,1743843032744,-500.0,0.00018898,2]
[357165251,1743843032753,-614.07,0.00018898,2]
[357165252,1743843032763,-500.0,0.00018898,2]
[357165253,1743843032773,-527.17322486,0.00018898,2]
[357165254,1743843032782,-500.0,0.00018898,2]
[357165255,1743843032791,-296.43441977,0.00018899,3]
[357165256,1743843032801,-500.0,0.00018899,2]
[357165257,1743843032811,-500.0,0.00018899,2]
[357165258,1743843032820,-527.13,0.00018899,2]
[357165259,1743843032830,-500.0,0.00018899,2]
[357165260,1743843032850,-490.25705535,0.00018899,2]
[357165261,1743843032859,-500.0,0.00018899,2]
[357165262,1743843032869,-500.0,0.00018899,2]
[357165263,1743843032879,-3680.83,0.00018899,2]
[357165264,1743843032889,-500.0,0.00018899,2]
[357165265,1743843032898,-500.0,0.00018899,2]
[357165266,1743843032909,-500.0,0.00018899,2]
[357165267,1743843032919,-500.0,0.00018899,2]
[357165268,1743843032929,-500.0,0.00018899,2]
[357165269,1743843032938,-550.45,0.00018899,2]
[357165270,1743843032947,-500.0,0.00018899,2]
[357165271,1743843032957,-500.0,0.00018899,2]
[357165272,1743843032966,-500.0,0.00018899,2]
[357165273,1743843032975,-500.0,0.00018899,2]
[357165274,1743843032985,-500.0,0.00018899,2]
[357165275,1743843032995,-500.0,0.00018899,2]
[357165276,1743843033004,-500.0,0.00018899,2]
[357165277,1743843033014,-500.0,0.00018899,2]
[357165278,1743843033024,-500.0,0.00018899,2]
[357165279,1743843033034,-500.0,0.00018899,2]
[357165280,1743843033045,-500.0,0.00018899,2]
[357165281,1743843033054,-500.0,0.00018899,2]
[357165282,1743843033065,-500.0,0.00018899,2]
[357165283,1743843033074,-500.0,0.00018899,2]
[357165284,1743843033084,-500.0,0.00018899,2]
[357165285,1743843033094,-500.0,0.00018899,2]
[357165286,1743843033104,-576.76,0.00018899,2]
[357165287,1743843033114,-500.0,0.00018899,2]
[357165288,1743843033126,-500.0,0.00018899,2]
[357165289,1743843033135,-511.76,0.00018899,2]
[357165290,1743843033145,-500.0,0.00018899,2]
[357165291,1743843033154,-500.0,0.00018899,2]
[357165292,1743843033165,-229.64258446,0.00018899,2]
[357165293,1743843033174,-500.0,0.00018899,2]
[357165294,1743843033184,-500.0,0.00018899,2]
[357165295,1743843033193,-500.0,0.00018899,2]
[357165296,1743843033203,-377.29694355,0.00018899,2]
[357165306,1743843040895,-122.70305645,0.00018899,2]
[357165307,1743843040905,-500.0,0.00018899,2]
[357165308,1743843040915,-500.0,0.00018899,2]
[357165309,1743843040925,-579.3,0.00018899,2]
[357165310,1743843040935,-516.44729318,0.00018899,2]
[357165311,1743843040944,-200.28405476,0.00018899,2]
[357165312,1743843040954,-254.5081667,0.00018899,2]
[357165313,1743843040965,-154.71305417,0.00018899,2]
[357165314,1743843040975,-141661.28828468,0.000189,2]
[357165324,1743843046889,-1185.1146082,0.000189,2]
[357165333,1743843882353,185.0654017,0.00013699,2]
[357165403,1743844237690,-241.8179862,0.00017395,2]
[357165404,1743844237701,-336.2023666,0.00017571,2]
[357165405,1743844237711,-583.4702464,0.00017757,2]
[357165406,1743844237721,-300.0,0.00017897,2]
[357165407,1743844237731,-9441.8708644,0.00017898,2]
[357165408,1743844237740,-226.1835792,0.00018429,2]
[357165409,1743844237750,-180.15735705,0.000187,2]
[357165410,1743844237760,-1125.7640332,0.000187,2]
[357165411,1743844237769,-552.84053322,0.00018799,2]
[357165412,1743844237780,-500.0,0.00018799,2]
[357165413,1743844237790,-500.0,0.00018799,2]
[357165414,1743844237800,-500.0,0.00018799,2]
[357165415,1743844237809,-500.0,0.00018799,2]
[357165416,1743844237820,-500.0,0.00018799,2]
[357165417,1743844237830,-514.10238724,0.00018799,2]
[357165418,1743844237840,-505.59627892,0.00018799,2]
[357165420,1743844237850,-312.12067765,0.00018799,2]
[357165422,1743844237860,-62335.2531149,0.000188,2]
[357165423,1743844237870,-563.872994,0.000188,2]
[357165424,1743844237880,-469.0184324,0.000188,2]
[357165425,1743844237889,-772.96,0.0001889,3]
[357165426,1743844237899,-500.0,0.00018898,2]
[357165427,1743844237911,-500.0,0.00018898,2]
[357165428,1743844237923,-505.16,0.00018898,2]
[357165429,1743844237935,-500.0,0.00018898,2]
[357165430,1743844237946,-207.15,0.00018898,2]
[357165431,1743844237956,-500.0,0.00018898,2]
[357165432,1743844237966,-864.26,0.00018898,2]
[357165433,1743844237976,-626.6,0.00018898,2]
[357165434,1743844237987,-500.0,0.00018898,2]
[357165435,1743844237997,-216.88718955,0.00018898,2]
[357165436,1743844238017,-283.11281045,0.00018898,2]
[357165437,1743844238027,-179.85718755,0.00018898,2]
[357165443,1743844240094,-320.14281245,0.00018898,2]
[357165444,1743844240107,-500.0,0.00018898,2]
[357165445,1743844240116,-433.19768957,0.00018898,2]
[357165446,1743844240800,-0.03591641,0.00018898,2]
[357165496,1743844246058,-563.872994,0.000187,2]
[357165497,1743844246068,-66.76639402,0.00018898,2]
[357165498,1743844246077,-500.0,0.00018898,2]
[357165499,1743844246087,-500.0,0.00018898,2]
[357165500,1743844246096,-500.0,0.00018898,2]
[357165501,1743844246106,-606.38751856,0.00018898,2]
[357165502,1743844246120,-500.0,0.00018898,2]
[357165504,1743844246130,-238.54,0.00018898,2]
[357165506,1743844246140,-500.0,0.00018898,2]
[357165507,1743844246151,-500.0,0.00018898,2]
[357165510,1743844246160,-500.0,0.00018898,2]
[357165512,1743844246170,-500.0,0.00018898,2]
[357165513,1743844246179,-500.0,0.00018898,2]
[357165515,1743844246190,-500.0,0.00018898,2]
[357165516,1743844246199,-6140.22612769,0.00018898,2]
[357165517,1743844246209,-500.0,0.00018899,2]
[357165518,1743844246218,-300.93045099,0.00018899,2]
[357165519,1743844246228,-563.872994,0.000189,2]
[357165520,1743844246238,-563.872994,0.000189,2]
[357165521,1743844246247,-563.872994,0.000189,2]
[357165522,1743844246256,-563.872994,0.000189,2]
[357165523,1743844246266,-563.872994,0.000189,2]
[357165524,1743844246275,-563.872994,0.000189,2]
[357165525,1743844246284,-563.872994,0.000189,2]
[357165526,1743844246294,-563.872994,0.000189,2]
[357165527,1743844246304,-500.0,0.00018973,2]
[357165528,1743844246313,-500.0,0.00018973,2]
[357165529,1743844246322,-500.0,0.00018973,2]
[357165530,1743844246332,-715.68078,0.00018973,2]
[357165531,1743844246342,-715.68078,0.00018973,2]
[357165532,1743844246351,-151.0,0.00018973,2]
[357165533,1743844246361,-151.0,0.00018973,2]
[357165534,1743844246371,-151.0,0.00018973,2]
[357165535,1743844246512,-151.0,0.00018973,2]
[357165536,1743844246522,-151.0,0.00018973,2]
[357165537,1743844246532,-151.0,0.00018973,2]
[357165538,1743844246543,-210.592933,0.00018973,2]
[357165539,1743844246553,-302.84982797,0.0001898,2]
[357165540,1743844246562,-411.27216346,0.00018999,2]
[357165541,1743844246572,-500.0,0.00018999,2]
[357165542,1743844246583,-500.0,0.00018999,2]
[357165543,1743844246593,-500.0,0.00018999,2]
[357165544,1743844246603,-365.11412388,0.00018999,2]
[357165545,1743844246612,-500.0,0.00018999,2]
[357165546,1743844246622,-6.83632198,0.00018999,2]
[357165550,1743844354020,31031.0,0.00025,120]
[357165552,1743844419347,-169.6376844,0.00018429,2]
[357165553,1743844419372,-39.93711946,0.00018513,2]
[357165554,1743844422503,-169.6376844,0.00018513,2]
[357165555,1743844424235,-124.8638376,0.00018513,2]
[357165556,1743844424259,-65.96608878,0.00018698,2]
[357165557,1743844430135,-161.21007362,0.00018698,2]
[357165562,1743845025157,300.0,0.00025,120]
[357165563,1743845043924,300.1,0.00025,120]
[357165625,1743845431999,-300.0,0.0001772,2]
[357165626,1743845432009,-7647.39440979,0.00017721,2]
[357165632,1743845432109,-9080.75080741,0.00017721,2]
[357165633,1743845432121,-204.3324558,0.00017903,2]
[357165634,1743845432131,-169.6376844,0.00018429,2]
[357165635,1743845432140,-2216.06,0.0001869,3]
[357165636,1743845432149,-1108.03,0.0001869,3]
[357165637,1743845432159,-554.02,0.0001869,3]
[357165638,1743845432168,-277.01,0.0001869,3]
[357165639,1743845432177,-831.05,0.0001869,3]
[357165640,1743845432186,-507.53076235,0.00018699,2]
[357165641,1743845432196,-500.0,0.00018699,2]
[357165642,1743845432205,-539.64010365,0.00018699,2]
[357165643,1743845432214,-500.0,0.00018699,2]
[357165644,1743845432223,-536.29284589,0.00018699,2]
[357165645,1743845432232,-536.95089088,0.00018699,2]
[357165646,1743845432242,-500.0,0.00018699,2]
[357165647,1743845432251,-394.51804001,0.00018699,2]
[357165648,1743845432260,-500.0,0.00018699,2]
[357165649,1743845432270,-500.0,0.00018699,2]
[357165650,1743845432279,-535.75553262,0.00018699,2]
[357165651,1743845432288,-500.0,0.00018699,2]
[357165652,1743845432297,-478.21016923,0.00018699,2]
[357165653,1743845432306,-529.39482691,0.00018699,2]
[357165654,1743845432316,-15618.89107893,0.000187,2]
[357165655,1743845432327,-1008.16366828,0.000187,2]
[357165665,1743845437942,-3571.66483034,0.000187,2]
[357165669,1743845440139,-6257.73596728,0.000187,2]
[357165670,1743845440151,-861.77123863,0.000187,2]
[357165671,1743845440207,-64786.32665815,0.000187,2]
[357165672,1743845440219,-306.0,0.000187,2]
[357165673,1743845440229,-563.872994,0.000187,2]
[357165674,1743845440239,-563.872994,0.000187,2]
[357165675,1743845440249,-153.0,0.000187,2]
[357165676,1743845440259,-563.872994,0.000187,2]
[357165677,1743845440269,-563.872994,0.000187,2]
[357165678,1743845440279,-500.0,0.00018798,2]
[357165679,1743845440289,-500.0,0.00018798,2]
[357165680,1743845440299,-500.0,0.00018798,2]
[357165681,1743845440309,-600.49,0.00018798,2]
[357165682,1743845440320,-500.0,0.00018798,2]
[357165683,1743845440331,-500.0,0.00018798,2]
[357165684,1743845440340,-500.0,0.00018798,2]
[357165685,1743845440351,-500.0,0.00018798,2]
[357165686,1743845440361,-500.0,0.00018798,2]
[357165687,1743845440371,-500.0,0.00018798,2]
[357165688,1743845440381,-500.0,0.00018798,2]
[357165689,1743845440392,-500.0,0.00018798,2]
[357165690,1743845440402,-500.0,0.00018799,2]
[357165691,1743845440412,-500.0,0.00018799,2]
[357165692,1743845440422,-501.11083644,0.00018799,2]
[357165693,1743845440432,-563.872994,0.000188,2]
[357165694,1743845440441,-563.872994,0.000189,2]
[357165695,1743845440451,-4767.90293447,0.000189,2]
[357165696,1743845440461,-501.28450436,0.00018973,2]
[357165697,1743845440472,-200.0,0.00018989,2]
[357165698,1743845440482,-519.9275668,0.00018999,2]
[357165699,1743845440492,-500.0,0.00018999,2]
[357165700,1743845440502,-500.0,0.00018999,2]
[357165701,1743845440512,-500.0,0.00018999,2]
[357165702,1743845440522,-500.0,0.00018999,2]
[357165703,1743845440531,-500.0,0.00018999,2]
[357165704,1743845440542,-500.0,0.00018999,2]
[357165705,1743845440551,-500.0,0.00018999,2]
[357165706,1743845440563,-500.0,0.00018999,2]
[357165707,1743845440572,-500.0,0.00018999,2]
[357165708,1743845440586,-500.0,0.00018999,2]
[357165709,1743845440596,-500.0,0.00018999,2]
[357165710,1743845440605,-500.0,0.00018999,2]
[357165711,1743845440615,-500.0,0.00018999,2]
[357165712,1743845440625,-500.0,0.00018999,2]
[357165713,1743845440634,-500.0,0.00018999,2]
[357165714,1743845440644,-500.0,0.00018999,2]
[357165715,1743845440654,-500.0,0.00018999,2]
[357165716,1743845440664,-500.0,0.00018999,2]
[357165717,1743845440674,-500.0,0.00018999,2]
[357165718,1743845440684,-500.0,0.00018999,2]
[357165719,1743845440693,-500.0,0.00018999,2]
[357165720,1743845440703,-500.0,0.00018999,2]
[357165721,1743845440712,-500.0,0.00018999,2]
[357165722,1743845440721,-345.69006765,0.00018999,2]
[357165723,1743845440731,-526.56369922,0.00018999,2]
[357165724,1743845440740,-500.0,0.00018999,2]
[357165725,1743845440751,-322.99946924,0.00018999,2]
[357165726,1743845440761,-151.0,0.00018999,2]
[357165727,1743845440770,-151.0,0.00018999,2]
[357165728,1743845440780,-178.15571669,0.00018999,2]
[357165729,1743845440790,-51346.55684879,0.00019,2]
[357165735,1743845442983,-10965.64000895,0.00019,2]
[357165736,1743845443067,-26474.94476243,0.00019,2]
[357165737,1743845443078,-294.91678797,0.00019,2]
[357165738,1743845443090,-349.19591403,0.00019,2]
[357165739,1743845443099,-644.112702,0.00019,2]
[357165740,1743845443109,-151.0,0.00019,2]
[357165741,1743845443119,-151.0,0.00019,2]
[357165742,1743845443129,-151.0,0.00019,2]
[357165743,1743845443139,-151.0,0.00019,2]
[357165744,1743845443149,-151.0,0.00019,2]
[357165745,1743845443159,-151.0,0.00019,2]
[357165746,1743845443168,-151.0,0.00019,2]
[357165747,1743845443178,-182.27,0.00019172,2]
[357165748,1743845443188,-864.26,0.00019172,2]
[357165749,1743845443197,-500.0,0.00019173,2]
[357165750,1743845443207,-151.8,0.00019173,2]
[357165751,1743845443217,-851.72239885,0.00019173,2]
[357165770,1743846632258,-169.6376844,0.00018597,2]
[357165772,1743846632269,-262.0423156,0.00018672,2]
[357165773,1743846632315,-237.9576844,0.00018672,2]
[357165774,1743846632326,-204.01183387,0.00018672,2]
[357165775,1743846632336,-300.0,0.00018688,2]
[357165776,1743846632348,-291.97100589,0.00018689,2]
[357165777,1743846632358,-500.0,0.00018689,2]
[357165778,1743846632369,-500.0,0.00018689,2]
[357165779,1743846632378,-500.0,0.00018689,2]
[357165780,1743846632388,-519.32170555,0.00018689,2]
[357165781,1743846632398,-500.0,0.00018946,2]
[357165782,1743846632407,-4862.11044929,0.00019082,2]
[357165783,1743846632476,-722.74611716,0.00019082,2]
[357165813,1743846638079,-476.23999,0.00019082,2]
[357165816,1743846640405,-3690.7164655,0.00019082,2]
[357165817,1743846640414,-1000.0,0.00019083,5]
[357165818,1743846640424,-4245.06665584,0.0001917,3]
[357165819,1743846640433,-1183.4036966,0.00019172,2]
[357165820,1743846640443,-612.58945232,0.00019172,2]
[357165821,1743846640453,-2829.10760115,0.00019173,2]
[357165822,1743846640463,-153.84,0.00019173,2]
[357165823,1743846640472,-387.91205997,0.00019173,2]
[357165824,1743846640482,-357.0,0.00019173,2]
[357165825,1743846640492,-357.0,0.00019173,2]
[357165826,1743846640501,-163.63067452,0.00019173,2]
[357165827,1743846640512,-563.872994,0.000192,2]
[357165828,1743846640522,-500.0,0.0001922,2]
[357165829,1743846640532,-210.09354072,0.00019261,2]
[357165830,1743846640542,-375.29502208,0.00019271,2]
[357165831,1743846640552,-285.92,0.00019271,2]
[357165832,1743846640561,-500.0,0.00019271,2]
[357165833,1743846640570,-500.0,0.00019272,2]
[357165834,1743846640580,-500.0,0.00019272,2]
[357165835,1743846640590,-500.0,0.00019272,2]
[357165836,1743846640599,-412.88852546,0.00019272,2]
[357165837,1743846640609,-500.0,0.00019272,2]
[357165838,1743846640619,-500.0,0.00019272,2]
[357165839,1743846640628,-500.0,0.00019272,2]
[357165840,1743846640638,-500.0,0.00019272,2]
[357165841,1743846640648,-500.0,0.00019272,2]
[357165842,1743846640657,-500.0,0.00019272,2]
[357165843,1743846640667,-185.156,0.00019272,2]
[357165844,1743846640677,-500.0,0.00019272,2]
[357165845,1743846640686,-5011.49,0.00019272,2]
[357165846,1743846640696,-157.26066332,0.00019273,2]
[357165847,1743846640705,-614.07,0.00019273,2]
[357165848,1743846640716,-598.03260443,0.00019273,2]
[357165849,1743846640726,-500.0,0.00019273,2]
[357165850,1743846640735,-287.82685563,0.00019273,2]
[357165851,1743846640745,-500.0,0.00019273,2]
[357165852,1743846640754,-500.0,0.00019273,2]
[357165853,1743846640763,-235.64,0.00019273,2]
[357165854,1743846640772,-500.0,0.00019273,2]
[357165855,1743846640782,-502.6807176,0.00019273,2]
[357165856,1743846640791,-500.0,0.00019273,2]
[357165857,1743846640801,-500.0,0.00019273,2]
[357165858,1743846640810,-531.55860814,0.00019273,2]
[357165859,1743846640819,-500.0,0.00019273,2]
[357165860,1743846640828,-500.0,0.00019273,2]
[357165861,1743846640838,-575.72,0.00019273,2]
[357165862,1743846640847,-500.0,0.00019273,2]
[357165863,1743846640856,-500.0,0.00019273,2]
[357165864,1743846640865,-500.0,0.00019273,2]
[357165865,1743846640876,-500.0,0.00019273,2]
[357165866,1743846640885,-500.0,0.00019273,2]
[357165867,1743846640896,-275.618585,0.00019273,2]
[357165868,1743846640907,-373.83,0.00019273,2]
[357165869,1743846640918,-500.0,0.00019273,2]
[357165870,1743846640928,-210.75432974,0.00019273,2]
[357165871,1743846640938,-563.7213539,0.000193,2]
[357165872,1743846640951,-577.0656848,0.000193,2]
[357165873,1743846640962,-563.7213539,0.000193,2]
[357165874,1743846640973,-563.7213539,0.000193,2]
[357165875,1743846640983,-563.7213539,0.000193,2]
[357165876,1743846640993,-563.7213539,0.000193,2]
[357165877,1743846641002,-563.7213539,0.000193,2]
[357165878,1743846641012,-563.7213539,0.000193,2]
[357165879,1743846641021,-299.94,0.00019401,2]
[357165880,1743846641033,-299.91,0.00019401,2]
[357165881,1743846641043,-864.26,0.00019446,2]
[357165882,1743846641052,-500.0,0.00019447,2]
[357165883,1743846641061,-3680.83,0.00019447,2]
[357165884,1743846641071,-500.0,0.00019494,2]
[357165885,1743846641080,-500.0,0.00019545,2]
[357165886,1743846641089,-5011.49,0.00019546,2]
[357165887,1743846641098,-614.07,0.00019547,2]
[357165888,1743846641108,-469.84485257,0.00019547,2]
[357165889,1743846641117,-500.0,0.00019547,2]
[357165890,1743846641126,-500.0,0.00019547,2]
[357165891,1743846641136,-500.0,0.00019547,2]
[357165892,1743846641145,-500.0,0.00019547,2]
[357165893,1743846641154,-500.0,0.00019547,2]
[357165894,1743846641163,-500.0,0.00019547,2]
[357165895,1743846641173,-864.26,0.0001972,2]
[357165896,1743846641183,-500.0,0.00019721,2]
[357165897,1743846641192,-3680.83,0.00019721,2]
[357165898,1743846641202,-500.0,0.00019768,2]
[357165899,1743846641212,-500.0,0.00019819,2]
[357165900,1743846641221,-5011.49,0.0001982,2]
[357165901,1743846641230,-614.07,0.00019821,2]
[357165902,1743846641239,-152.79560844,0.0001988,2]
[357165903,1743846641248,-5200.51325924,0.000199,2]
[357165904,1743846641258,-500.0,0.00019973,2]
[357165905,1743846641268,-500.0,0.00019973,2]
[357165906,1743846641278,-500.0,0.00019973,2]
[357165907,1743846641287,-1752.11,0.00019989,3]
[357165908,1743846641296,-876.06,0.00019989,3]
[357165909,1743846641307,-438.03,0.00019989,3]
[357165910,1743846641317,-219.01,0.00019989,3]
[357165911,1743846641327,-657.08,0.00019989,3]
[357165912,1743846641337,-864.26,0.00019994,2]
[357165913,1743846641346,-500.0,0.00019995,2]
[357165914,1743846641357,-3680.83,0.00019995,2]
[357165915,1743846641369,-170.63950362,0.00019997,2]
[357165916,1743846641378,-613.70520594,0.00019998,2]
[357165917,1743846641387,-500.0,0.00019998,2]
[357165918,1743846641397,-576.7821017,0.00019998,2]
[357165919,1743846641406,-566.96561951,0.00019998,2]
[357165920,1743846641416,-350.47331514,0.00019998,2]
[357165921,1743846641427,-502.68053745,0.00019998,2]
[357165922,1743846641438,-504.91110292,0.00019998,2]
[357165923,1743846641448,-501.39213588,0.00019998,2]
[357165924,1743846641458,-503.16947551,0.00019998,2]
[357165925,1743846641467,-500.0,0.00019998,2]
[357165926,1743846641603,-270.8052708,0.00019998,2]
[357165927,1743846641615,-500.0,0.00019999,2]
[357165928,1743846641624,-500.0,0.00019999,2]
[357165929,1743846641634,-500.0,0.00019999,2]
[357165930,1743846641643,-587.45979883,0.00019999,2]
[357165931,1743846641653,-523.54756855,0.00019999,2]
[357165932,1743846641662,-500.0,0.00019999,2]
[357165933,1743846641671,-500.0,0.00019999,2]
[357165934,1743846641680,-500.0,0.00019999,2]
[357165935,1743846641690,-500.0,0.00019999,2]
[357165936,1743846641699,-500.0,0.00019999,2]
[357165937,1743846641708,-186.63837905,0.00019999,2]
[357165938,1743846641718,-500.0,0.00019999,2]
[357165939,1743846641727,-500.0,0.00019999,2]
[357165940,1743846641738,-470.06,0.00019999,2]
[357165941,1743846641747,-585.17435429,0.00019999,2]
[357165942,1743846641757,-500.0,0.00019999,2]
[357165943,1743846641766,-500.0,0.00019999,2]
[357165944,1743846641776,-500.0,0.00019999,2]
[357165945,1743846641785,-500.0,0.00019999,2]
[357165946,1743846641795,-500.0,0.00019999,2]
[357165947,1743846641804,-500.0,0.00019999,2]
[357165948,1743846641813,-500.0,0.00019999,2]
[357165949,1743846641823,-500.0,0.00019999,2]
[357165950,1743846641832,-524.9503372,0.00019999,2]
[357165951,1743846641842,-500.0,0.00019999,2]
[357165952,1743846641851,-437.21614001,0.00019999,2]
[357165953,1743846641860,-500.0,0.00019999,2]
[357165954,1743846641871,-500.0,0.00019999,2]
[357165955,1743846641881,-257.29367543,0.00019999,2]
[357165956,1743846641890,-511.68681006,0.00019999,2]
[357165957,1743846641900,-531.19963751,0.00019999,2]
[357165958,1743846641911,-539.00261778,0.00019999,2]
[357165959,1743846641921,-545.10433681,0.00019999,2]
[357165960,1743846641930,-545.29809928,0.00019999,2]
[357165961,1743846641939,-535.76220393,0.00019999,2]
[357165962,1743846641953,-593.06566166,0.00019999,2]
[357165963,1743846641962,-503.0658386,0.00019999,2]
[357165964,1743846641971,-639.78,0.00019999,2]
[357165965,1743846641980,-512.9397974,0.00019999,2]
[357165966,1743846641990,-513.51055002,0.00019999,2]
[357165967,1743846642000,-513.89878192,0.00019999,2]
[357165968,1743846642009,-151.0,0.00019999,2]
[357165969,1743846642019,-151.0,0.00019999,2]
[357165970,1743846642029,-587.251432,0.00019999,2]
[357165971,1743846642039,-151.0,0.00019999,2]
[357165972,1743846642049,-587.251432,0.00019999,2]
[357165973,1743846642058,-152.521894,0.00019999,2]
[357165974,1743846642069,-155.181407,0.00019999,2]
[357165975,1743846642078,-151.0,0.00019999,2]
[357165976,1743846642087,-151.0,0.00019999,2]
[357165977,1743846642097,-151.0,0.00019999,2]
[357165978,1743846642106,-151.0,0.00019999,2]
[357165979,1743846642116,-154.307786,0.00019999,2]
[357165980,1743846642127,-151.0,0.00019999,2]
[357165981,1743846642138,-1062.454172,0.00019999,2]
[357165982,1743846642147,-1062.454172,0.00019999,2]
[357165983,1743846642155,-151.0,0.00019999,2]
[357165984,1743846642165,-151.0,0.00019999,2]
[357165985,1743846642174,-151.0,0.00019999,2]
[357165986,1743846642183,-187.171015,0.00019999,2]
[357165987,1743846642192,-156.220303,0.00019999,2]
[357165988,1743846642201,-151.706743,0.00019999,2]
[357165989,1743846642210,-187.171015,0.00019999,2]
[357165990,1743846642219,-151.0,0.00019999,2]
[357165991,1743846642229,-17045.61990041,0.0002,2]
[357165996,1743846643355,-2202.48993461,0.0002,2]
[357166011,1743846646379,-275.16655845,0.00018497,2]
[357166012,1743846646435,-316.80153759,0.00018497,2]
[357166272,1743847832341,-693.8350209,0.00018561,2]
[357166273,1743847832352,-300.0,0.00018736,2]
[357166274,1743847832361,-1822.69593154,0.00018737,2]
[357166275,1743847832466,-606.84252089,0.00018737,2]
[357166276,1743847832553,-2007.73760735,0.00018737,2]
[357166444,1743847840506,-642.48800007,0.00018737,2]
[357166764,1743847843695,-2361.07083832,0.0001855,2]
[357166765,1743847843705,-4920.23594015,0.00018737,2]
[357166768,1743847843715,-303.655835,0.00018737,2]
[357166770,1743847843725,-537.7495662,0.00018918,2]
[357166772,1743847843734,-396.53967521,0.00019171,2]
[357166774,1743847843744,-500.0,0.00019171,2]
[357166776,1743847843754,-500.0,0.00019171,2]
[357166778,1743847843763,-500.0,0.00019171,2]
[357166780,1743847843773,-529.54,0.00019171,2]
[357166782,1743847843783,-414.61881775,0.00019171,2]
[357167078,1743847846584,-85.38118225,0.00019171,2]
[357167080,1743847846593,-500.0,0.00019171,2]
[357167082,1743847846603,-500.0,0.00019171,2]
[357167084,1743847846612,-1531.2,0.00019171,2]
[357167086,1743847846622,-500.0,0.00019172,2]
[357167088,1743847846632,-500.0,0.00019172,2]
[357167090,1743847846641,-500.0,0.00019172,2]
[357167092,1743847846651,-500.0,0.00019172,2]
[357167094,1743847846661,-169.6376844,0.00019399,2]
[357167096,1743847846670,-500.0,0.00019443,2]
[357167098,1743847846680,-500.0,0.00019444,2]
[357167100,1743847846690,-508.30485824,0.00019444,2]
[357167102,1743847846700,-500.0,0.00019444,2]
[357167104,1743847846709,-500.0,0.00019444,2]
[357167106,1743847846719,-507.50180808,0.00019444,2]
[357167108,1743847846729,-409.83436576,0.00019444,2]
[357167111,1743847846739,-527.13,0.00019444,2]
[357167114,1743847846748,-490.25705535,0.00019444,2]
[357167117,1743847846758,-500.0,0.00019445,2]
[357167118,1743847846767,-500.0,0.00019445,2]
[357167121,1743847846777,-226.79,0.00019445,2]
[357167123,1743847846787,-529.54,0.00019445,2]
[357167125,1743847846797,-500.0,0.00019445,2]
[357167127,1743847846807,-1531.2,0.00019445,2]
[357167129,1743847846816,-500.0,0.00019718,2]
[357167131,1743847846825,-264.72,0.00019718,2]
[357167133,1743847846835,-500.0,0.00019719,2]
[357167134,1743847846844,-500.0,0.00019719,2]